[Event "Titled Tuesday Blitz May 2 Late 2023"]
[White "Hajiyev, Kanan"]
[Black "Rosen, Eric"]
[WhiteFideId "13404148"]
[BlackFideId "2032562"]
[WhiteElo "2103"]
[BlackElo "2331"]
[Result "1-0"]
[Round "04"]
[TimeControl "180+2"]
[Date "2023.05.02"]
[WhiteClock "0:00:19"]
[BlackClock "0:00:01"]

1. d4 {[%clk 0:02:55]}  d5 {[%clk 0:02:56]} 2. c4 {[%clk 0:02:55]}  e6 {[%clk 0:02:57]} 3. cxd5 {[%clk 0:02:56]}  exd5 {[%clk 0:02:58]} 4. Nc3 {[%clk 0:02:56]}  Nf6 {[%clk 0:02:58]} 5. Bg5 {[%clk 0:02:56]}  c6 {[%clk 0:02:58]} 6. Qc2 {[%clk 0:02:57]}  Bd6 {[%clk 0:02:57]} 7. Nf3 {[%clk 0:02:51]}  O-O {[%clk 0:02:54]} 8. e3 {[%clk 0:02:51]}  h6 {[%clk 0:02:54]} 9. Bh4 {[%clk 0:02:44]}  Re8 {[%clk 0:02:55]} 10. Bd3 {[%clk 0:02:43]}  Be6 {[%clk 0:02:55]} 11. O-O {[%clk 0:02:37]}  Nbd7 {[%clk 0:02:54]} 12. Rab1 {[%clk 0:02:37]}  a5 {[%clk 0:02:54]} 13. a3 {[%clk 0:02:37]}  Qb8 {[%clk 0:02:54]} 14. b4 {[%clk 0:02:36]}  Bg4 {[%clk 0:02:38]} 15. Bg3 {[%clk 0:02:30]}  b5 {[%clk 0:02:17]} 16. Ne2 {[%clk 0:02:07]}  axb4 {[%clk 0:01:46]} 17. axb4 {[%clk 0:02:06]}  Rc8 {[%clk 0:01:28]} 18. Rfc1 {[%clk 0:02:02]}  Nb6 {[%clk 0:01:20]} 19. h3 {[%clk 0:01:55]}  Bxf3 {[%clk 0:01:18]} 20. gxf3 {[%clk 0:01:56]}  Nc4 {[%clk 0:01:18]} 21. Bxc4 {[%clk 0:01:50]}  bxc4 {[%clk 0:01:18]} 22. e4 {[%clk 0:01:40]}  Bxg3 {[%clk 0:01:09]} 23. Nxg3 {[%clk 0:01:40]}  Qf4 {[%clk 0:01:09]} 24. e5 {[%clk 0:01:30]}  Nh7 {[%clk 0:01:00]} 25. Qc3 {[%clk 0:01:13]}  Ng5 {[%clk 0:00:48]} 26. Kg2 {[%clk 0:01:13]}  Ra2 {[%clk 0:00:40]} 27. Rb2 {[%clk 0:00:50]}  Rxb2 {[%clk 0:00:35]} 28. Qxb2 {[%clk 0:00:51]}  Qxf3+ {[%clk 0:00:35]} 29. Kg1 {[%clk 0:00:52]}  Nxh3+ {[%clk 0:00:34]} 30. Kh2 {[%clk 0:00:42]}  Nxf2 {[%clk 0:00:21]} 31. Rf1 {[%clk 0:00:43]}  Ng4+ {[%clk 0:00:20]} 32. Kh3 {[%clk 0:00:43]}  Qd3 {[%clk 0:00:05]} 33. Kxg4 {[%clk 0:00:42]}  c3 {[%clk 0:00:03]} 34. Qf2 {[%clk 0:00:42]}  Rf8 {[%clk 0:00:03]} 35. Ne2 {[%clk 0:00:31]}  Qe4+ {[%clk 0:00:03]} 36. Nf4 {[%clk 0:00:29]}  c2 {[%clk 0:00:03]} 37. Qe2 {[%clk 0:00:26]}  Qxd4 {[%clk 0:00:03]} 38. Qxc2 {[%clk 0:00:26]}  g5 {[%clk 0:00:03]} 39. Qf5 {[%clk 0:00:22]}  gxf4 {[%clk 0:00:04]} 40. Kh5 {[%clk 0:00:21]}  Kh8 {[%clk 0:00:03]} 41. Qf6+ {[%clk 0:00:21]}  Kh7 {[%clk 0:00:04]} 42. Qxh6+ {[%clk 0:00:21]}  Kg8 {[%clk 0:00:04]} 43. Qg5+ {[%clk 0:00:20]}  Kh7 {[%clk 0:00:04]} 44. Qf5+ {[%clk 0:00:21]}  Kg7 {[%clk 0:00:03]} 45. Qf6+ {[%clk 0:00:19]}  Kh7 {[%clk 0:00:04]} 46. Qh6+ {[%clk 0:00:18]}  Kg8 {[%clk 0:00:04]} 47. Rxf4 {[%clk 0:00:19]}  Qd1+ {[%clk 0:00:03]} 48. Rg4+ {[%clk 0:00:18]}  Qxg4+ {[%clk 0:00:03]} 49. Kxg4 {[%clk 0:00:19]}  Re8 {[%clk 0:00:02]} 50. Kf5 {[%clk 0:00:18]}  Re6 {[%clk 0:00:02]} 51. Qg5+ {[%clk 0:00:18]}  Kf8 {[%clk 0:00:02]} 52. Qd8+ {[%clk 0:00:19]}  Kg7 {[%clk 0:00:03]} 53. Qg5+ {[%clk 0:00:18]}  Kf8 {[%clk 0:00:03]} 54. Qc1 {[%clk 0:00:19]}  Ke8 {[%clk 0:00:03]} 55. Qc5 {[%clk 0:00:19]}  Kd7 {[%clk 0:00:02]} 56. Qa7+ {[%clk 0:00:19]}  Ke8 {[%clk 0:00:02]} 57. Qc7 {[%clk 0:00:19]}  Kf8 {[%clk 0:00:01]} 58. Qd8+ {[%clk 0:00:19]}  Kg7 {[%clk 0:00:02]} 59. Kf4 {[%clk 0:00:20]}  Kg6 {[%clk 0:00:01]} 60. Qg8+ {[%clk 0:00:19]}  Kh6 {[%clk 0:00:02]} 61. Kf5 {[%clk 0:00:20]}  Kh5 {[%clk 0:00:01]} 62. Qxf7+ {[%clk 0:00:17]}  Rg6 {[%clk 0:00:01]} 63. Qxg6+ {[%clk 0:00:18]}  Kh4 {[%clk 0:00:01]} 64. Qg4# {[%clk 0:00:19]} 1-0


[Site "https://www.chess.com"]

[Event "Titled Tuesday Blitz May 2 Late 2023"]
[White "Nasir, Zehn"]
[Black "Remolar Gallen, Jose"]
[WhiteFideId "2613239"]
[BlackFideId "2215187"]
[WhiteElo "1993"]
[BlackElo "2223"]
[Result "1-0"]
[Round "04"]
[TimeControl "180+2"]
[Date "2023.05.02"]
[WhiteClock "0:00:29"]
[BlackClock "0:00:18"]

1. d4 {[%clk 0:03:00]}  g6 {[%clk 0:02:57]} 2. Bf4 {[%clk 0:02:59]}  Bg7 {[%clk 0:02:57]} 3. Nf3 {[%clk 0:02:57]}  d6 {[%clk 0:02:57]} 4. Nc3 {[%clk 0:02:54]}  Nd7 {[%clk 0:02:54]} 5. Qd2 {[%clk 0:02:53]}  e5 {[%clk 0:02:53]} 6. dxe5 {[%clk 0:02:52]}  dxe5 {[%clk 0:02:54]} 7. Bg5 {[%clk 0:02:51]}  f6 {[%clk 0:02:54]} 8. Be3 {[%clk 0:02:49]}  Ne7 {[%clk 0:02:53]} 9. O-O-O {[%clk 0:02:46]}  Nf5 {[%clk 0:02:51]} 10. Bc5 {[%clk 0:02:39]}  b6 {[%clk 0:02:34]} 11. Ba3 {[%clk 0:02:35]}  Bb7 {[%clk 0:02:26]} 12. Kb1 {[%clk 0:02:34]}  c5 {[%clk 0:02:18]} 13. e3 {[%clk 0:02:17]}  a6 {[%clk 0:02:11]} 14. Bc4 {[%clk 0:02:01]}  Qc7 {[%clk 0:02:03]} 15. Be6 {[%clk 0:01:52]}  Rd8 {[%clk 0:01:26]} 16. Nd5 {[%clk 0:01:18]}  Qc6 {[%clk 0:01:23]} 17. Bxf5 {[%clk 0:01:07]}  gxf5 {[%clk 0:01:24]} 18. Nh4 {[%clk 0:01:07]}  Nf8 {[%clk 0:00:46]} 19. c4 {[%clk 0:00:58]}  Bc8 {[%clk 0:00:44]} 20. Qc2 {[%clk 0:00:40]}  e4 {[%clk 0:00:42]} 21. g4 {[%clk 0:00:36]}  Ng6 {[%clk 0:00:18]} 22. Nxf5 {[%clk 0:00:34]}  Bxf5 {[%clk 0:00:18]} 23. gxf5 {[%clk 0:00:35]}  Ne5 {[%clk 0:00:18]} 24. Qxe4 {[%clk 0:00:34]}  b5 {[%clk 0:00:18]} 25. f4 {[%clk 0:00:29]} 1-0


[Site "https://www.chess.com"]

[Event "Titled Tuesday Blitz May 2 Late 2023"]
[White "Msellek, Ilyass"]
[Black "Baltic, Fatih"]
[WhiteFideId "675938"]
[BlackFideId "12979090"]
[WhiteElo "2302"]
[BlackElo "2200"]
[Result "1-0"]
[Round "04"]
[TimeControl "180+2"]
[Date "2023.05.02"]
[WhiteClock "0:00:15"]
[BlackClock "0:02:12"]

1. d4 {[%clk 0:02:55]}  Nf6 {[%clk 0:02:59]} 2. Nf3 {[%clk 0:02:55]}  g6 {[%clk 0:02:58]} 3. Nc3 {[%clk 0:02:55]}  d5 {[%clk 0:02:53]} 4. Bf4 {[%clk 0:02:55]}  Bg7 {[%clk 0:02:53]} 5. Qd2 {[%clk 0:02:47]}  Ne4 {[%clk 0:02:52]} 6. Nxe4 {[%clk 0:02:47]}  dxe4 {[%clk 0:02:51]} 7. Ne5 {[%clk 0:02:47]}  Nd7 {[%clk 0:02:49]} 8. Nxd7 {[%clk 0:02:46]}  Qxd7 {[%clk 0:02:46]} 9. O-O-O {[%clk 0:02:41]}  Qd5 {[%clk 0:02:34]} 10. Kb1 {[%clk 0:02:34]}  Be6 {[%clk 0:02:34]} 11. b3 {[%clk 0:02:32]}  O-O-O {[%clk 0:02:34]} 12. e3 {[%clk 0:02:31]}  c5 {[%clk 0:02:23]} 13. Qa5 {[%clk 0:02:19]}  cxd4 {[%clk 0:02:12]} 14. Qc7# {[%clk 0:00:15]} 1-0


[Site "https://www.chess.com"]

[Event "Titled Tuesday Blitz May 2 Late 2023"]
[White "Lee, Linden"]
[Black "Colpe, Malte"]
[WhiteFideId "30941830"]
[BlackFideId "24623075"]
[WhiteElo "1985"]
[BlackElo "2289"]
[Result "1-0"]
[Round "04"]
[TimeControl "180+2"]
[Date "2023.05.02"]
[WhiteClock "0:01:26"]
[BlackClock "0:00:18"]

1. d4 {[%clk 0:03:00]}  Nf6 {[%clk 0:02:58]} 2. c4 {[%clk 0:03:01]}  e6 {[%clk 0:02:57]} 3. Nc3 {[%clk 0:03:01]}  d5 {[%clk 0:02:56]} 4. cxd5 {[%clk 0:03:00]}  exd5 {[%clk 0:02:56]} 5. Bg5 {[%clk 0:03:00]}  c6 {[%clk 0:02:56]} 6. e3 {[%clk 0:03:00]}  Be7 {[%clk 0:02:56]} 7. Bd3 {[%clk 0:03:00]}  Nbd7 {[%clk 0:02:56]} 8. Nf3 {[%clk 0:03:00]}  O-O {[%clk 0:02:56]} 9. O-O {[%clk 0:03:01]}  Ne4 {[%clk 0:02:55]} 10. Bxe4 {[%clk 0:02:56]}  Bxg5 {[%clk 0:02:54]} 11. Bf5 {[%clk 0:02:52]}  Be7 {[%clk 0:02:48]} 12. Rc1 {[%clk 0:02:48]}  g6 {[%clk 0:02:48]} 13. Bd3 {[%clk 0:02:49]}  Re8 {[%clk 0:02:38]} 14. a3 {[%clk 0:02:49]}  a5 {[%clk 0:02:37]} 15. Qd2 {[%clk 0:02:43]}  Bf8 {[%clk 0:02:35]} 16. Rfe1 {[%clk 0:02:42]}  a4 {[%clk 0:02:24]} 17. e4 {[%clk 0:02:43]}  dxe4 {[%clk 0:02:23]} 18. Bxe4 {[%clk 0:02:43]}  Nf6 {[%clk 0:02:21]} 19. d5 {[%clk 0:02:36]}  cxd5 {[%clk 0:02:11]} 20. Bxd5 {[%clk 0:02:33]}  Nxd5 {[%clk 0:01:50]} 21. Rxe8 {[%clk 0:02:32]}  Qxe8 {[%clk 0:01:49]} 22. Nxd5 {[%clk 0:02:32]}  Qd8 {[%clk 0:01:43]} 23. Qd4 {[%clk 0:02:28]}  Bg7 {[%clk 0:01:42]} 24. Qc5 {[%clk 0:02:28]}  Be6 {[%clk 0:01:34]} 25. Ne7+ {[%clk 0:02:16]}  Kh8 {[%clk 0:01:34]} 26. Ng5 {[%clk 0:02:14]}  Ra5 {[%clk 0:00:52]} 27. Qc8 {[%clk 0:01:59]}  Qxc8 {[%clk 0:00:42]} 28. Rxc8+ {[%clk 0:01:57]}  Bf8 {[%clk 0:00:32]} 29. Rxf8+ {[%clk 0:01:44]}  Kg7 {[%clk 0:00:32]} 30. Nxe6+ {[%clk 0:01:44]}  fxe6 {[%clk 0:00:31]} 31. Rd8 {[%clk 0:01:43]}  Rc5 {[%clk 0:00:27]} 32. g3 {[%clk 0:01:42]}  Kf7 {[%clk 0:00:27]} 33. Ng8 {[%clk 0:01:38]}  Rb5 {[%clk 0:00:21]} 34. Nh6+ {[%clk 0:01:37]}  Kg7 {[%clk 0:00:21]} 35. Ng4 {[%clk 0:01:37]}  Rxb2 {[%clk 0:00:21]} 36. Rd7+ {[%clk 0:01:37]}  Kf8 {[%clk 0:00:21]} 37. Nf6 {[%clk 0:01:38]}  b5 {[%clk 0:00:20]} 38. Nxh7+ {[%clk 0:01:37]}  Ke8 {[%clk 0:00:20]} 39. Nf6+ {[%clk 0:01:38]}  Kf8 {[%clk 0:00:21]} 40. Rb7 {[%clk 0:01:34]}  b4 {[%clk 0:00:19]} 41. Nd7+ {[%clk 0:01:33]}  Ke8 {[%clk 0:00:18]} 42. axb4 {[%clk 0:01:28]}  a3 {[%clk 0:00:17]} 43. Nf6+ {[%clk 0:01:26]}  Kd8 {[%clk 0:00:17]} 44. Ra7 {[%clk 0:01:26]}  a2 {[%clk 0:00:18]} 45. Kg2 {[%clk 0:01:26]}  Kc8 {[%clk 0:00:17]} 46. Ne4 {[%clk 0:01:26]}  Kb8 {[%clk 0:00:18]} 47. Ra4 {[%clk 0:01:26]} 1-0


[Site "https://www.chess.com"]

[Event "Titled Tuesday Blitz May 2 Late 2023"]
[White "Seemann, Jakub"]
[Black "Topalov, Aleksandar"]
[WhiteFideId "21874697"]
[BlackFideId "925659"]
[WhiteElo "2364"]
[BlackElo "2151"]
[Result "1-0"]
[Round "04"]
[TimeControl "180+2"]
[Date "2023.05.02"]
[WhiteClock "0:01:03"]
[BlackClock "0:01:22"]

1. Nf3 {[%clk 0:03:00]}  Nf6 {[%clk 0:02:38]} 2. b4 {[%clk 0:02:58]}  e5 {[%clk 0:02:34]} 3. Nxe5 {[%clk 0:02:51]}  Bxb4 {[%clk 0:02:33]} 4. Bb2 {[%clk 0:02:50]}  O-O {[%clk 0:02:33]} 5. e3 {[%clk 0:02:45]}  Re8 {[%clk 0:02:33]} 6. Bd3 {[%clk 0:02:41]}  d5 {[%clk 0:02:26]} 7. O-O {[%clk 0:02:37]}  Nbd7 {[%clk 0:02:23]} 8. Nxd7 {[%clk 0:02:35]}  Bxd7 {[%clk 0:02:21]} 9. h3 {[%clk 0:02:35]}  Bd6 {[%clk 0:02:16]} 10. c4 {[%clk 0:02:21]}  Be5 {[%clk 0:02:11]} 11. Bxe5 {[%clk 0:02:16]}  Rxe5 {[%clk 0:02:11]} 12. Nc3 {[%clk 0:02:15]}  Bc6 {[%clk 0:02:06]} 13. Ne2 {[%clk 0:02:03]}  Rg5 {[%clk 0:01:52]} 14. Nf4 {[%clk 0:01:53]}  dxc4 {[%clk 0:01:49]} 15. Bxc4 {[%clk 0:01:51]}  Nh5 {[%clk 0:01:47]} 16. g3 {[%clk 0:01:24]}  Nxg3 {[%clk 0:01:38]} 17. fxg3 {[%clk 0:01:20]}  Rxg3+ {[%clk 0:01:38]} 18. Kh2 {[%clk 0:01:19]}  Qh4 {[%clk 0:01:38]} 19. Bxf7+ {[%clk 0:01:14]}  Kh8 {[%clk 0:01:23]} 20. Qh5 {[%clk 0:01:05]}  Rxh3+ {[%clk 0:01:22]} 21. Nxh3 {[%clk 0:01:03]} 1-0


[Site "https://www.chess.com"]

[Event "Titled Tuesday Blitz May 2 Late 2023"]
[White "Onslow, Alfie"]
[Black "Kjartansson, David"]
[WhiteFideId "436976"]
[BlackFideId "2301130"]
[WhiteElo "2114"]
[BlackElo "2333"]
[Result "0-1"]
[Round "04"]
[TimeControl "180+2"]
[Date "2023.05.02"]
[WhiteClock "0:00:04"]
[BlackClock "0:00:22"]

1. e4 {[%clk 0:02:59]}  d6 {[%clk 0:02:59]} 2. d4 {[%clk 0:02:59]}  Nf6 {[%clk 0:03:00]} 3. Nc3 {[%clk 0:03:00]}  e5 {[%clk 0:03:00]} 4. dxe5 {[%clk 0:03:00]}  dxe5 {[%clk 0:03:00]} 5. Qxd8+ {[%clk 0:03:00]}  Kxd8 {[%clk 0:03:01]} 6. f4 {[%clk 0:03:01]}  Nc6 {[%clk 0:02:56]} 7. Nf3 {[%clk 0:02:58]}  Bb4 {[%clk 0:02:55]} 8. Bd3 {[%clk 0:02:55]}  Bg4 {[%clk 0:02:54]} 9. Bd2 {[%clk 0:02:55]}  Bxf3 {[%clk 0:02:54]} 10. gxf3 {[%clk 0:02:55]}  exf4 {[%clk 0:02:34]} 11. a3 {[%clk 0:02:52]}  Bd6 {[%clk 0:02:28]} 12. Rg1 {[%clk 0:02:52]}  g6 {[%clk 0:02:28]} 13. Ne2 {[%clk 0:02:51]}  Nh5 {[%clk 0:02:26]} 14. O-O-O {[%clk 0:02:27]}  Ke7 {[%clk 0:02:20]} 15. Bb5 {[%clk 0:02:15]}  Be5 {[%clk 0:02:09]} 16. Bxc6 {[%clk 0:01:54]}  bxc6 {[%clk 0:02:08]} 17. Rg4 {[%clk 0:01:42]}  Rab8 {[%clk 0:02:00]} 18. Bb4+ {[%clk 0:01:42]}  Ke6 {[%clk 0:01:58]} 19. Nd4+ {[%clk 0:01:18]}  Bxd4 {[%clk 0:01:56]} 20. Rxd4 {[%clk 0:01:18]}  Rb5 {[%clk 0:01:52]} 21. Rc4 {[%clk 0:01:10]}  Kd7 {[%clk 0:01:31]} 22. Rg1 {[%clk 0:01:09]}  Rb6 {[%clk 0:01:20]} 23. Rd1+ {[%clk 0:00:57]}  Kc8 {[%clk 0:01:20]} 24. e5 {[%clk 0:00:52]}  Rd8 {[%clk 0:01:18]} 25. Rxd8+ {[%clk 0:00:38]}  Kxd8 {[%clk 0:01:16]} 26. Bc5 {[%clk 0:00:31]}  Ra6 {[%clk 0:01:11]} 27. Kd2 {[%clk 0:00:23]}  Kd7 {[%clk 0:01:11]} 28. Kd3 {[%clk 0:00:19]}  Ke6 {[%clk 0:01:11]} 29. Ke4 {[%clk 0:00:20]}  g5 {[%clk 0:01:11]} 30. Rd4 {[%clk 0:00:18]}  f5+ {[%clk 0:01:11]} 31. exf6 {[%clk 0:00:17]}  Nxf6+ {[%clk 0:01:11]} 32. Kd3 {[%clk 0:00:17]}  Nd7 {[%clk 0:01:05]} 33. Re4+ {[%clk 0:00:15]}  Kf5 {[%clk 0:01:02]} 34. Bd4 {[%clk 0:00:12]}  c5 {[%clk 0:01:02]} 35. Bc3 {[%clk 0:00:13]}  Rd6+ {[%clk 0:01:02]} 36. Kc4 {[%clk 0:00:13]}  g4 {[%clk 0:00:56]} 37. Re7 {[%clk 0:00:11]}  gxf3 {[%clk 0:00:54]} 38. Rf7+ {[%clk 0:00:08]}  Kg4 {[%clk 0:00:52]} 39. Rg7+ {[%clk 0:00:08]}  Kh3 {[%clk 0:00:48]} 40. Rxh7+ {[%clk 0:00:08]}  Kg2 {[%clk 0:00:49]} 41. Rg7+ {[%clk 0:00:07]}  Kxh2 {[%clk 0:00:48]} 42. Be1 {[%clk 0:00:06]}  Rd1 {[%clk 0:00:43]} 43. Bf2 {[%clk 0:00:06]}  Rd2 {[%clk 0:00:41]} 44. Be1 {[%clk 0:00:05]}  Rxc2+ {[%clk 0:00:40]} 45. Kd3 {[%clk 0:00:05]}  Rxb2 {[%clk 0:00:39]} 46. Bd2 {[%clk 0:00:05]}  c4+ {[%clk 0:00:37]} 47. Kc3 {[%clk 0:00:04]}  Rb3+ {[%clk 0:00:36]} 48. Kc2 {[%clk 0:00:04]}  Nf6 {[%clk 0:00:24]} 49. Bxf4+ {[%clk 0:00:04]}  Kh1 {[%clk 0:00:23]} 50. Kd2 {[%clk 0:00:04]}  Ne4+ {[%clk 0:00:23]} 51. Ke1 {[%clk 0:00:04]}  Rb1+ {[%clk 0:00:22]} 0-1


[Site "https://www.chess.com"]

[Event "Titled Tuesday Blitz May 2 Late 2023"]
[White "Klenburg, Michael"]
[Black "Prieto Aranguren, Alain"]
[WhiteFideId "14102072"]
[BlackFideId "2268906"]
[WhiteElo "2396"]
[BlackElo "2209"]
[Result "1/2-1/2"]
[Round "04"]
[TimeControl "180+2"]
[Date "2023.05.02"]
[WhiteClock "0:01:12"]
[BlackClock "0:00:39"]

1. g3 {[%clk 0:02:59]}  h5 {[%clk 0:02:59]} 2. Nf3 {[%clk 0:02:58]}  Nc6 {[%clk 0:02:56]} 3. Bg2 {[%clk 0:02:57]}  e5 {[%clk 0:02:55]} 4. d3 {[%clk 0:02:57]}  Be7 {[%clk 0:02:53]} 5. c4 {[%clk 0:02:52]}  h4 {[%clk 0:02:53]} 6. Nc3 {[%clk 0:02:52]}  h3 {[%clk 0:02:50]} 7. Bf1 {[%clk 0:02:52]}  g5 {[%clk 0:02:47]} 8. e3 {[%clk 0:02:50]}  g4 {[%clk 0:02:47]} 9. Nd2 {[%clk 0:02:50]}  b6 {[%clk 0:02:46]} 10. Be2 {[%clk 0:02:46]}  f5 {[%clk 0:02:41]} 11. O-O {[%clk 0:02:43]}  Bb7 {[%clk 0:02:41]} 12. Nd5 {[%clk 0:02:37]}  Nf6 {[%clk 0:02:39]} 13. Nxe7 {[%clk 0:02:37]}  Qxe7 {[%clk 0:02:38]} 14. a3 {[%clk 0:02:36]}  O-O {[%clk 0:02:33]} 15. b4 {[%clk 0:02:36]}  d5 {[%clk 0:02:27]} 16. cxd5 {[%clk 0:02:32]}  Nxd5 {[%clk 0:02:27]} 17. Bb2 {[%clk 0:02:32]}  Rad8 {[%clk 0:02:21]} 18. Qc2 {[%clk 0:02:31]}  Kh7 {[%clk 0:02:14]} 19. Rfe1 {[%clk 0:02:26]}  Qg5 {[%clk 0:02:05]} 20. Rac1 {[%clk 0:02:17]}  Nxe3 {[%clk 0:02:02]} 21. fxe3 {[%clk 0:02:12]}  Qxe3+ {[%clk 0:02:02]} 22. Kf1 {[%clk 0:02:12]}  Ne7 {[%clk 0:01:35]} 23. Bf3 {[%clk 0:02:07]}  Qxd3+ {[%clk 0:01:03]} 24. Qxd3 {[%clk 0:02:05]}  Rxd3 {[%clk 0:01:02]} 25. Bxb7 {[%clk 0:02:00]}  Rxd2 {[%clk 0:01:02]} 26. Rxc7 {[%clk 0:01:58]}  Rxb2 {[%clk 0:00:58]} 27. Rxe5 {[%clk 0:01:52]}  Rxh2 {[%clk 0:00:51]} 28. Rexe7+ {[%clk 0:01:51]}  Kg6 {[%clk 0:00:50]} 29. Re6+ {[%clk 0:01:13]}  Rf6 {[%clk 0:00:48]} 30. Ree7 {[%clk 0:01:12]}  Rf8 {[%clk 0:00:39]} 31. Re6+ {[%clk 0:01:12]}  Rf6 {[%clk 0:00:39]} 32. Ree7 {[%clk 0:01:12]}  Rf8 {[%clk 0:00:39]} 1/2-1/2


[Site "https://www.chess.com"]

[Event "Titled Tuesday Blitz May 2 Late 2023"]
[White "Benedetti, Julio"]
[Black "Estremera Panos, Sergio"]
[WhiteFideId "172545"]
[BlackFideId "2200864"]
[WhiteElo "2263"]
[BlackElo "2253"]
[Result "1-0"]
[Round "04"]
[TimeControl "180+2"]
[Date "2023.05.02"]
[WhiteClock "0:00:24"]
[BlackClock "0:00:02"]

1. e4 {[%clk 0:03:00]}  c5 {[%clk 0:02:57]} 2. Nc3 {[%clk 0:03:00]}  Nc6 {[%clk 0:02:57]} 3. f4 {[%clk 0:03:01]}  g6 {[%clk 0:02:56]} 4. Nf3 {[%clk 0:03:01]}  Bg7 {[%clk 0:02:55]} 5. Bc4 {[%clk 0:03:02]}  e6 {[%clk 0:02:55]} 6. f5 {[%clk 0:03:02]}  d5 {[%clk 0:02:47]} 7. fxe6 {[%clk 0:03:03]}  dxc4 {[%clk 0:02:40]} 8. exf7+ {[%clk 0:03:02]}  Kxf7 {[%clk 0:02:40]} 9. O-O {[%clk 0:03:01]}  Nf6 {[%clk 0:02:35]} 10. e5 {[%clk 0:02:55]}  Nxe5 {[%clk 0:02:32]} 11. Nxe5+ {[%clk 0:02:53]}  Kg8 {[%clk 0:02:29]} 12. Nxc4 {[%clk 0:02:38]}  Qd4+ {[%clk 0:02:25]} 13. Ne3 {[%clk 0:02:37]}  h6 {[%clk 0:02:23]} 14. b3 {[%clk 0:02:04]}  Kh7 {[%clk 0:02:22]} 15. Bb2 {[%clk 0:02:01]}  Rd8 {[%clk 0:01:45]} 16. Na4 {[%clk 0:01:57]}  Qd6 {[%clk 0:01:42]} 17. Qf3 {[%clk 0:01:56]}  Nh5 {[%clk 0:01:21]} 18. Bxg7 {[%clk 0:01:56]}  Nxg7 {[%clk 0:01:21]} 19. Nc3 {[%clk 0:01:53]}  Be6 {[%clk 0:01:13]} 20. Ne4 {[%clk 0:01:54]}  Qe5 {[%clk 0:01:05]} 21. d3 {[%clk 0:01:16]}  Bf5 {[%clk 0:01:00]} 22. Nxf5 {[%clk 0:01:11]}  Nxf5 {[%clk 0:00:59]} 23. Rae1 {[%clk 0:01:11]}  Qd4+ {[%clk 0:00:49]} 24. Kh1 {[%clk 0:01:11]}  Rf8 {[%clk 0:00:35]} 25. c3 {[%clk 0:01:08]}  Qg7 {[%clk 0:00:26]} 26. Nxc5 {[%clk 0:00:53]}  Qxc3 {[%clk 0:00:18]} 27. Qxb7+ {[%clk 0:00:53]}  Kh8 {[%clk 0:00:17]} 28. Ne6 {[%clk 0:00:49]}  Rfb8 {[%clk 0:00:10]} 29. Qf7 {[%clk 0:00:43]}  Rg8 {[%clk 0:00:05]} 30. d4 {[%clk 0:00:43]}  Qd3 {[%clk 0:00:02]} 31. Rf3 {[%clk 0:00:29]}  Qc2 {[%clk 0:00:03]} 32. Ref1 {[%clk 0:00:25]}  Nh4 {[%clk 0:00:03]} 33. Qf6+ {[%clk 0:00:25]}  Kh7 {[%clk 0:00:02]} 34. Qxh4 {[%clk 0:00:25]}  Qd2 {[%clk 0:00:02]} 35. Rf7+ {[%clk 0:00:23]}  Kh8 {[%clk 0:00:02]} 36. Qf6+ {[%clk 0:00:23]}  Rg7 {[%clk 0:00:02]} 37. Qxg7# {[%clk 0:00:24]} 1-0


[Site "https://www.chess.com"]

[Event "Titled Tuesday Blitz May 2 Late 2023"]
[White "Haszon, David"]
[Black "Feng, Eric"]
[WhiteFideId "733610"]
[BlackFideId "30952590"]
[WhiteElo "2210"]
[BlackElo "1785"]
[Result "1-0"]
[Round "04"]
[TimeControl "180+2"]
[Date "2023.05.02"]
[WhiteClock "0:01:34"]
[BlackClock "0:01:48"]

1. d4 {[%clk 0:03:00]}  Nf6 {[%clk 0:02:55]} 2. Nf3 {[%clk 0:03:00]}  e6 {[%clk 0:02:53]} 3. Bf4 {[%clk 0:02:59]}  d5 {[%clk 0:02:53]} 4. e3 {[%clk 0:02:59]}  Bd6 {[%clk 0:02:53]} 5. Bg3 {[%clk 0:02:58]}  O-O {[%clk 0:02:53]} 6. Nbd2 {[%clk 0:02:58]}  c5 {[%clk 0:02:53]} 7. c3 {[%clk 0:02:57]}  Nc6 {[%clk 0:02:53]} 8. Bd3 {[%clk 0:02:53]}  Qe7 {[%clk 0:02:54]} 9. Ne5 {[%clk 0:02:48]}  Nd7 {[%clk 0:02:50]} 10. Nxd7 {[%clk 0:02:41]}  Bxd7 {[%clk 0:02:50]} 11. Bxd6 {[%clk 0:02:38]}  Qxd6 {[%clk 0:02:51]} 12. dxc5 {[%clk 0:02:37]}  Qxc5 {[%clk 0:02:51]} 13. Bxh7+ {[%clk 0:02:37]}  Kxh7 {[%clk 0:02:47]} 14. Qh5+ {[%clk 0:02:35]}  Kg8 {[%clk 0:02:48]} 15. Ne4 {[%clk 0:02:36]}  Qc4 {[%clk 0:02:29]} 16. Ng5 {[%clk 0:02:34]}  Qd3 {[%clk 0:02:18]} 17. e4 {[%clk 0:02:25]}  Rfd8 {[%clk 0:01:57]} 18. Qxf7+ {[%clk 0:02:20]}  Kh8 {[%clk 0:01:58]} 19. Rd1 {[%clk 0:02:03]}  Qc4 {[%clk 0:01:53]} 20. Qh5+ {[%clk 0:01:49]}  Kg8 {[%clk 0:01:53]} 21. Qh7+ {[%clk 0:01:44]}  Kf8 {[%clk 0:01:53]} 22. Qh8+ {[%clk 0:01:44]}  Ke7 {[%clk 0:01:53]} 23. Qxg7+ {[%clk 0:01:44]}  Kd6 {[%clk 0:01:54]} 24. Nf7+ {[%clk 0:01:43]}  Kc7 {[%clk 0:01:54]} 25. Qg3+ {[%clk 0:01:35]}  Kc8 {[%clk 0:01:48]} 26. Nd6+ {[%clk 0:01:34]} 1-0


[Site "https://www.chess.com"]

[Event "Titled Tuesday Blitz May 2 Late 2023"]
[White "Dobrowolski, Piotr"]
[Black "Papayan, Oleg"]
[WhiteFideId "1106236"]
[BlackFideId "4193911"]
[WhiteElo "2320"]
[BlackElo "2153"]
[Result "0-1"]
[Round "04"]
[TimeControl "180+2"]
[Date "2023.05.02"]
[WhiteClock "0:00:01"]
[BlackClock "0:00:14"]

1. e4 {[%clk 0:03:00]}  d5 {[%clk 0:03:00]} 2. exd5 {[%clk 0:03:00]}  Qxd5 {[%clk 0:03:01]} 3. Nc3 {[%clk 0:02:59]}  Qa5 {[%clk 0:03:02]} 4. d4 {[%clk 0:02:58]}  Nf6 {[%clk 0:03:02]} 5. Nf3 {[%clk 0:02:58]}  Bf5 {[%clk 0:03:03]} 6. Ne5 {[%clk 0:02:58]}  c6 {[%clk 0:03:01]} 7. g4 {[%clk 0:02:57]}  Be6 {[%clk 0:03:00]} 8. Bc4 {[%clk 0:02:56]}  Bxc4 {[%clk 0:02:56]} 9. Nxc4 {[%clk 0:02:56]}  Qc7 {[%clk 0:02:57]} 10. Qf3 {[%clk 0:02:44]}  Qd7 {[%clk 0:02:12]} 11. Ne5 {[%clk 0:02:40]}  Qxd4 {[%clk 0:02:11]} 12. Bf4 {[%clk 0:02:40]}  Nbd7 {[%clk 0:01:53]} 13. Nxf7 {[%clk 0:02:14]}  Kxf7 {[%clk 0:01:28]} 14. Rd1 {[%clk 0:02:13]}  Ne5 {[%clk 0:01:09]} 15. Qg3 {[%clk 0:02:13]}  Ne4 {[%clk 0:00:43]} 16. Rxd4 {[%clk 0:01:30]}  Nxg3 {[%clk 0:00:44]} 17. Bxe5 {[%clk 0:01:18]}  Nxh1 {[%clk 0:00:44]} 18. f4 {[%clk 0:01:13]}  h5 {[%clk 0:00:36]} 19. g5 {[%clk 0:01:08]}  Ke8 {[%clk 0:00:36]} 20. Ne4 {[%clk 0:00:53]}  e6 {[%clk 0:00:33]} 21. Kf1 {[%clk 0:00:49]}  Rd8 {[%clk 0:00:33]} 22. Rxd8+ {[%clk 0:00:48]}  Kxd8 {[%clk 0:00:34]} 23. Kg2 {[%clk 0:00:37]}  h4 {[%clk 0:00:17]} 24. Kxh1 {[%clk 0:00:31]}  h3 {[%clk 0:00:17]} 25. Kg1 {[%clk 0:00:23]}  Rh4 {[%clk 0:00:18]} 26. Kf2 {[%clk 0:00:20]}  Rg4 {[%clk 0:00:18]} 27. Ng3 {[%clk 0:00:21]}  Bc5+ {[%clk 0:00:18]} 28. Kf3 {[%clk 0:00:21]}  Rh4 {[%clk 0:00:19]} 29. Bxg7 {[%clk 0:00:20]}  Bg1 {[%clk 0:00:20]} 30. g6 {[%clk 0:00:19]}  Ke8 {[%clk 0:00:20]} 31. Bf6 {[%clk 0:00:19]}  Rh6 {[%clk 0:00:20]} 32. g7 {[%clk 0:00:16]}  Kf7 {[%clk 0:00:21]} 33. Bg5 {[%clk 0:00:14]}  Rh7 {[%clk 0:00:19]} 34. Bf6 {[%clk 0:00:07]}  Rh6 {[%clk 0:00:17]} 35. Ne4 {[%clk 0:00:07]}  Bxh2 {[%clk 0:00:16]} 36. Be5 {[%clk 0:00:05]}  Bg1 {[%clk 0:00:14]} 37. Ng5+ {[%clk 0:00:05]}  Kg8 {[%clk 0:00:14]} 38. f5 {[%clk 0:00:01]}  exf5 {[%clk 0:00:14]} 0-1


[Site "https://www.chess.com"]